fUSD/lending_fUSD_20241210
["ID","MTS","AMOUNT","RATE_DAILY","PERIOD"]
[344805116,1733794268347,-4209.65,0.00011099,2]
[344805117,1733794268356,-4209.65,0.00011099,2]
[344805118,1733794268366,-4209.65,0.00011099,2]
[344805119,1733794268377,-4209.65,0.00011099,2]
[344805120,1733794268390,-4209.65,0.00011099,2]
[344805121,1733794268400,-4209.76600363,0.00011099,2]
[344805122,1733794268410,-1127.87,0.00011099,2]
[344805123,1733794268420,-1127.87,0.00011099,2]
[344805124,1733794268429,-1127.87,0.00011099,2]
[344805125,1733794268440,-1127.87,0.00011099,2]
[344805126,1733794268450,-1127.87,0.00011099,2]
[344805127,1733794268459,-1127.87,0.00011099,2]
[344805128,1733794268469,-1127.87,0.00011099,2]
[344805129,1733794268478,-1127.87,0.00011099,2]
[344805130,1733794268488,-1127.87,0.00011099,2]
[344805131,1733794268498,-1127.87,0.00011099,2]
[344805132,1733794268507,-1127.90238947,0.00011099,2]
[344805133,1733794268516,-1123.61,0.00011099,2]
[344805134,1733794268529,-1123.61,0.00011099,2]
[344805135,1733794268539,-1123.61,0.00011099,2]
[344805136,1733794268548,-1123.61,0.00011099,2]
[344805137,1733794268558,-1123.61,0.00011099,2]
[344805138,1733794268567,-1123.61,0.00011099,2]
[344805139,1733794268576,-1123.61,0.00011099,2]
[344805140,1733794268586,-1123.61,0.00011099,2]
[344805141,1733794268595,-1123.61,0.00011099,2]
[344805142,1733794268605,-1123.61,0.00011099,2]
[344805143,1733794268615,-1123.67398182,0.00011099,2]
[344805144,1733794268630,-925.07,0.00011099,2]
[344805145,1733794268639,-925.07,0.00011099,2]
[344805146,1733794268649,-925.07,0.00011099,2]
[344805147,1733794268658,-925.07,0.00011099,2]
[344805148,1733794268668,-925.07,0.00011099,2]
[344805149,1733794268678,-925.07,0.00011099,2]
[344805150,1733794268687,-925.07,0.00011099,2]
[344805151,1733794268697,-925.07,0.00011099,2]
[344805152,1733794268707,-925.07,0.00011099,2]
[344805153,1733794268717,-925.07,0.00011099,2]
[344805154,1733794268727,-925.1393374,0.00011099,2]
[344805155,1733794268737,-8853061.818824,0.000111,2]
[344805156,1733794268747,-16601805.12578875,0.000111,2]
[344805157,1733794269078,-2228.5,0.00010958,2]
[344805158,1733794269087,-273.234259,0.00011098,2]
[344805159,1733794269132,-2228.5,0.00010958,2]
[344805160,1733794269142,-221.5905606,0.00011098,2]
[344805161,1733794269330,-1121.1,0.00010958,2]
[344805162,1733794269648,-309.99999842,0.00010958,2]
[344805163,1733794269659,-797.40000158,0.00010958,2]
[344805164,1733794269668,-588.04535842,0.00010958,2]
[344805165,1733794269690,-250.03896001,0.00010958,2]
[344805166,1733794269880,-383.5086327,0.00010958,2]
[344805167,1733794269892,-1006.90704887,0.00010958,2]
[344805168,1733794269902,-2228.5,0.00010958,2]
[344805169,1733794269911,-2228.5,0.00010958,2]
[344805170,1733794269920,-2228.5,0.00010958,2]
[344805171,1733794269931,-2228.5,0.00010958,2]
[344805172,1733794269941,-2228.5,0.00010958,2]
[344805173,1733794269950,-1385.64853113,0.00010958,2]
[344805174,1733794269979,-842.85146887,0.00010958,2]
[344805175,1733794269989,-2228.5,0.00010958,2]
[344805176,1733794269998,-2228.5,0.00010958,2]
[344805177,1733794270008,-2228.5,0.00010958,2]
[344805178,1733794270017,-2228.5,0.00010958,2]
[344805179,1733794270026,-2228.5,0.00010958,2]
[344805180,1733794270036,-2228.5,0.00010958,2]
[344805181,1733794270045,-2228.5,0.00010958,2]
[344805182,1733794270054,-2228.5,0.00010958,2]
[344805183,1733794270063,-555.24054633,0.00010958,2]
[344805184,1733794270072,-2228.5,0.00010958,2]
[344805185,1733794270082,-2228.60782062,0.00010958,2]
[344805186,1733794270091,-1082.01671706,0.00011094,3]
[344805187,1733794270101,-5.1751804,0.00011098,2]
[344805188,1733794270110,-599.95576644,0.00011098,2]
[344805189,1733794270121,-130539.42815402,0.000111,2]
[344805190,1733794270133,-77675.9971853,0.000111,2]
[344805192,1733794381742,3634.700503,0.00021,120]
[344805193,1733794502606,157.0,0.000111,30]
[344805195,1733794578414,-789.55,8.219e-05,2]
[344805196,1733794578436,-150.0,9.678e-05,2]
[344805197,1733794578459,-500.0,9.999e-05,2]
[344805198,1733794578481,-1002.97,0.00010088,2]
[344805199,1733794578503,-150.0,0.00010117,2]
[344805200,1733794578525,-992.3,0.00010133,2]
[344805201,1733794578547,-500.0,0.00010136,2]
[344805202,1733794578570,-500.18,0.00010173,2]
[344805203,1733794684997,6986.443,0.000102,9]
[344805205,1733794802465,157.22927258,0.000111,30]
[344805208,1733795390627,7863.42768,0.0002199,120]
[344805211,1733795431708,-150.0,9.789e-05,2]
[344805212,1733795431718,-1000.0,9.876e-05,2]
[344805213,1733795431728,-250.0,9.927e-05,2]
[344805214,1733795431738,-250.0,9.94e-05,2]
[344805215,1733795431748,-500.0,0.00010008,2]
[344805216,1733795431758,-2589.39,0.0001002,2]
[344805218,1733795431985,-150.0,0.00010137,2]
[344805219,1733795431997,-840.0,0.00010169,2]
[344805220,1733795432007,-1001.02,0.00010169,2]
[344805221,1733795432020,-994.6,0.0001017,2]
[344805222,1733795432029,-995.62,0.00010171,2]
[344805223,1733795432039,-501.13,0.00010173,2]
[344805224,1733795432048,-300.0,0.00010199,2]
[344805225,1733795432057,-986.19,0.000102,2]
[344805226,1733795432067,-1014.78,0.00010213,2]
[344805227,1733795432076,-1000.91,0.00010293,2]
[344805228,1733795432087,-789.55,0.0001048,2]
[344805229,1733795432096,-2112.76,0.00010858,2]
[344805230,1733795432106,-272.5555,0.00010858,2]
[344805231,1733795432115,-200.0,0.00010875,2]
[344805232,1733795432125,-27112.29163,0.000109,2]
[344805233,1733795432136,-417.98026338,0.000109,2]
[344805235,1733795432147,-878.28779281,0.000109,2]
[344805240,1733795432178,-31205.49248658,0.000109,2]
[344805244,1733795437735,-495.32752945,0.000109,2]
[344805245,1733795437747,-42720.10868161,0.000109,2]
[344805246,1733795438023,-319896.22480802,0.000109,2]
[344805247,1733795438049,-368.90043825,0.00010958,2]
[344805248,1733795438059,-500.0,0.00010958,2]
[344805249,1733795438068,-346.67502442,0.00010958,2]
[344805250,1733795438078,-624.40021869,0.00010958,2]
[344805251,1733795438090,-500.0,0.00010958,2]
[344805252,1733795438100,-500.0,0.00010958,2]
[344805253,1733795438109,-500.0,0.00010958,2]
[344805254,1733795438119,-500.0,0.00010958,2]
[344805255,1733795438128,-500.0,0.00010958,2]
[344805256,1733795438137,-500.0,0.00010958,2]
[344805257,1733795438147,-500.0,0.00010958,2]
[344805258,1733795438156,-500.0,0.00010958,2]
[344805259,1733795438165,-500.0,0.00010958,2]
[344805260,1733795438174,-500.0,0.00010958,2]
[344805261,1733795438183,-500.0,0.00010958,2]
[344805262,1733795438192,-500.0,0.00010958,2]
[344805263,1733795438201,-500.0,0.00010958,2]
[344805264,1733795438210,-500.0,0.00010958,2]
[344805265,1733795438220,-500.0,0.00010958,2]
[344805266,1733795438229,-500.0,0.00010958,2]
[344805267,1733795438238,-500.0,0.00010958,2]
[344805268,1733795438247,-500.0,0.00010958,2]
[344805269,1733795438256,-500.0,0.00010958,2]
[344805270,1733795438265,-500.0,0.00010958,2]
[344805271,1733795438274,-500.0,0.00010958,2]
[344805272,1733795438284,-500.0,0.00010958,2]
[344805273,1733795438295,-500.0,0.00010958,2]
[344805274,1733795438304,-500.0,0.00010958,2]
[344805275,1733795438314,-500.0,0.00010958,2]
[344805276,1733795438323,-500.0,0.00010958,2]
[344805278,1733795438332,-500.0,0.00010958,2]
[344805279,1733795438342,-500.0,0.00010958,2]
[344805280,1733795438351,-500.0,0.00010958,2]
[344805281,1733795438360,-500.0,0.00010958,2]
[344805282,1733795438370,-500.0,0.00010958,2]
[344805283,1733795438380,-500.0,0.00010958,2]
[344805284,1733795438389,-500.0,0.00010958,2]
[344805285,1733795438399,-500.0,0.00010958,2]
[344805286,1733795438409,-500.0,0.00010958,2]
[344805287,1733795438418,-500.0,0.00010958,2]
[344805288,1733795438428,-500.0,0.00010958,2]
[344805289,1733795438437,-500.0,0.00010958,2]
[344805290,1733795438446,-500.0,0.00010958,2]
[344805291,1733795438455,-500.0,0.00010958,2]
[344805292,1733795438466,-500.0,0.00010958,2]
[344805293,1733795438476,-500.0,0.00010958,2]
[344805294,1733795438485,-500.0,0.00010958,2]
[344805295,1733795438495,-500.0,0.00010958,2]
[344805296,1733795438505,-500.0,0.00010958,2]
[344805297,1733795438514,-500.0,0.00010958,2]
[344805298,1733795438523,-500.0,0.00010958,2]
[344805299,1733795438533,-500.0,0.00010958,2]
[344805300,1733795438543,-500.0,0.00010958,2]
[344805301,1733795438552,-500.0,0.00010958,2]
[344805302,1733795438562,-500.0,0.00010958,2]
[344805303,1733795438572,-500.0,0.00010958,2]
[344805304,1733795438582,-500.0,0.00010958,2]
[344805305,1733795438591,-500.0,0.00010958,2]
[344805306,1733795438602,-500.0,0.00010958,2]
[344805307,1733795438612,-500.0,0.00010958,2]
[344805308,1733795438622,-500.0,0.00010958,2]
[344805309,1733795438632,-500.0,0.00010958,2]
[344805310,1733795438642,-500.0,0.00010958,2]
[344805311,1733795438652,-500.0,0.00010958,2]
[344805312,1733795438662,-500.0,0.00010958,2]
[344805313,1733795438671,-500.0,0.00010958,2]
[344805314,1733795438681,-500.0,0.00010958,2]
[344805315,1733795438691,-500.0,0.00010958,2]
[344805316,1733795438701,-500.0,0.00010958,2]
[344805317,1733795438712,-500.0,0.00010958,2]
[344805318,1733795438722,-500.0,0.00010958,2]
[344805319,1733795438731,-500.0,0.00010958,2]
[344805320,1733795438742,-500.0,0.00010958,2]
[344805321,1733795438751,-557.44,0.00010958,2]
[344805322,1733795438761,-557.44,0.00010958,2]
[344805323,1733795438777,-557.44,0.00010958,2]
[344805324,1733795438788,-500.0,0.00010958,2]
[344805325,1733795438799,-500.0,0.00010958,2]
[344805326,1733795438809,-500.0,0.00010958,2]
[344805327,1733795438818,-500.0,0.00010958,2]
[344805328,1733795438828,-500.0,0.00010958,2]
[344805329,1733795438838,-500.0,0.00010958,2]
[344805330,1733795438848,-500.0,0.00010958,2]
[344805331,1733795438858,-500.0,0.00010958,2]
[344805332,1733795438868,-500.0,0.00010958,2]
[344805333,1733795438878,-500.0,0.00010958,2]
[344805334,1733795438888,-500.0,0.00010958,2]
[344805335,1733795438898,-500.0,0.00010958,2]
[344805336,1733795438908,-500.0,0.00010958,2]
[344805337,1733795438922,-500.0,0.00010958,2]
[344805338,1733795438931,-500.0,0.00010958,2]
[344805339,1733795438941,-500.0,0.00010958,2]
[344805340,1733795438951,-500.0,0.00010958,2]
[344805341,1733795438962,-500.0,0.00010958,2]
[344805342,1733795438971,-500.0,0.00010958,2]
[344805343,1733795438981,-646.07098643,0.00010958,2]
[344805344,1733795438992,-511.94944491,0.00010958,2]
[344805345,1733795439004,-1032.52,0.00010958,2]
[344805346,1733795439014,-1032.52,0.00010958,2]
[344805347,1733795439024,-1032.52,0.00010958,2]
[344805348,1733795439034,-626.28,0.00010958,2]
[344805349,1733795439044,-626.28,0.00010958,2]
[344805350,1733795439054,-626.28,0.00010958,2]
[344805351,1733795439064,-500.0,0.00010958,2]
[344805352,1733795439074,-500.0,0.00010958,2]
[344805353,1733795439084,-476.72139042,0.00010958,2]
[344805354,1733795439094,-500.0,0.00010958,2]
[344805355,1733795439104,-500.0,0.00010958,2]
[344805356,1733795439114,-500.0,0.00010958,2]
[344805357,1733795439123,-500.0,0.00010958,2]
[344805358,1733795439134,-500.0,0.00010958,2]
[344805359,1733795439143,-500.0,0.00010958,2]
[344805360,1733795439153,-500.0,0.00010958,2]
[344805361,1733795439163,-500.0,0.00010958,2]
[344805362,1733795439173,-500.0,0.00010958,2]
[344805363,1733795439183,-500.0,0.00010958,2]
[344805364,1733795439192,-500.0,0.00010958,2]
[344805365,1733795439201,-500.0,0.00010958,2]
[344805366,1733795439212,-500.0,0.00010958,2]
[344805367,1733795439221,-500.0,0.00010958,2]
[344805368,1733795439231,-500.0,0.00010958,2]
[344805369,1733795439241,-500.0,0.00010958,2]
[344805370,1733795439250,-500.0,0.00010958,2]
[344805371,1733795439260,-500.0,0.00010958,2]
[344805372,1733795439271,-500.0,0.00010958,2]
[344805373,1733795439280,-500.0,0.00010958,2]
[344805374,1733795439290,-500.0,0.00010958,2]
[344805375,1733795439299,-500.0,0.00010958,2]
[344805376,1733795439309,-500.0,0.00010958,2]
[344805377,1733795439318,-500.0,0.00010958,2]
[344805378,1733795439328,-500.0,0.00010958,2]
[344805379,1733795439337,-500.0,0.00010958,2]
[344805380,1733795439346,-603.20500475,0.00010958,2]
[344805381,1733795439356,-500.0,0.00010958,2]
[344805382,1733795439365,-500.0,0.00010958,2]
[344805383,1733795439375,-231.59920935,0.00010958,2]
[344805384,1733795439385,-500.0,0.00010958,2]
[344805385,1733795439394,-500.0,0.00010958,2]
[344805386,1733795439404,-500.0,0.00010958,2]
[344805387,1733795439414,-500.0,0.00010958,2]
[344805388,1733795439423,-500.0,0.00010958,2]
[344805389,1733795439434,-230.67685776,0.00010958,2]
[344805390,1733795439444,-500.0,0.00010958,2]
[344805391,1733795439454,-500.0,0.00010958,2]
[344805392,1733795439464,-500.0,0.00010958,2]
[344805393,1733795439474,-500.0,0.00010958,2]
[344805394,1733795439484,-500.0,0.00010958,2]
[344805395,1733795439494,-500.0,0.00010958,2]
[344805396,1733795439505,-500.0,0.00010958,2]
[344805397,1733795439515,-500.0,0.00010958,2]
[344805398,1733795439524,-500.0,0.00010958,2]
[344805399,1733795439535,-968.15,0.00010958,2]
[344805400,1733795439544,-968.15,0.00010958,2]
[344805401,1733795439554,-968.15,0.00010958,2]
[344805402,1733795439564,-553.47531198,0.00010958,2]
[344805403,1733795439574,-1668.71,0.00010958,2]
[344805404,1733795439583,-1668.71,0.00010958,2]
[344805405,1733795439593,-1668.71,0.00010958,2]
[344805406,1733795439603,-500.0,0.00010958,2]
[344805408,1733795439613,-500.0,0.00010958,2]
[344805409,1733795439622,-500.0,0.00010958,2]
[344805410,1733795439632,-500.0,0.00010958,2]
[344805411,1733795439642,-500.0,0.00010958,2]
[344805412,1733795439652,-501.35492862,0.00010958,2]
[344805413,1733795439662,-500.0,0.00010958,2]
[344805414,1733795439672,-500.0,0.00010958,2]
[344805415,1733795439683,-500.0,0.00010958,2]
[344805416,1733795439693,-500.0,0.00010958,2]
[344805417,1733795439704,-500.0,0.00010958,2]
[344805418,1733795439714,-500.0,0.00010958,2]
[344805419,1733795439724,-526.41748651,0.00010958,2]
[344805420,1733795439734,-500.0,0.00010958,2]
[344805421,1733795439744,-500.0,0.00010958,2]
[344805422,1733795439754,-500.0,0.00010958,2]
[344805423,1733795439764,-500.0,0.00010958,2]
[344805424,1733795439775,-500.0,0.00010958,2]
[344805425,1733795439785,-500.0,0.00010958,2]
[344805426,1733795439795,-500.0,0.00010958,2]
[344805427,1733795439805,-500.0,0.00010958,2]
[344805428,1733795439814,-500.0,0.00010958,2]
[344805429,1733795439824,-545.88304416,0.00010958,2]
[344805430,1733795439834,-3004.28,0.00010958,2]
[344805431,1733795439844,-3004.28,0.00010958,2]
[344805432,1733795439854,-3004.28,0.00010958,2]
[344805433,1733795439864,-500.0,0.00010958,2]
[344805434,1733795439873,-364.59174613,0.00010958,2]
[344805435,1733795439883,-500.0,0.00010958,2]
[344805436,1733795439892,-500.0,0.00010958,2]
[344805437,1733795439902,-2515.33,0.00010958,2]
[344805438,1733795439913,-500.0,0.00010958,2]
[344805439,1733795439926,-500.0,0.00010958,2]
[344805440,1733795439936,-500.0,0.00010958,2]
[344805441,1733795439946,-500.0,0.00010958,2]
[344805442,1733795439956,-1227.05,0.00010958,2]
[344805443,1733795439966,-1227.05,0.00010958,2]
[344805444,1733795439976,-1227.05,0.00010958,2]
[344805445,1733795439986,-500.0,0.00010958,2]
[344805446,1733795439996,-500.0,0.00010958,2]
[344805447,1733795440007,-500.0,0.00010958,2]
[344805448,1733795440017,-500.0,0.00010958,2]
[344805449,1733795440027,-500.0,0.00010958,2]
[344805450,1733795440036,-522.35988965,0.00010958,2]
[344805451,1733795440046,-500.0,0.00010958,2]
[344805452,1733795440056,-500.0,0.00010958,2]
[344805453,1733795440066,-500.0,0.00010958,2]
[344805454,1733795440075,-500.0,0.00010958,2]
[344805455,1733795440085,-500.0,0.00010958,2]
[344805456,1733795440095,-500.0,0.00010958,2]
[344805457,1733795440105,-500.0,0.00010958,2]
[344805458,1733795440115,-500.0,0.00010958,2]
[344805459,1733795440124,-927.39,0.00010958,2]
[344805460,1733795440134,-927.39,0.00010958,2]
[344805461,1733795440144,-927.39,0.00010958,2]
[344805462,1733795440155,-519.65063956,0.00010958,2]
[344805463,1733795440166,-1248.29,0.00010958,2]
[344805464,1733795440176,-765.48,0.00010958,2]
[344805465,1733795440186,-3516.61,0.00010958,2]
[344805466,1733795440196,-3516.61,0.00010958,2]
[344805467,1733795440206,-3516.61,0.00010958,2]
[344805468,1733795440216,-500.0,0.00010958,2]
[344805469,1733795440226,-3863.93,0.00010958,2]
[344805470,1733795440236,-3863.93,0.00010958,2]
[344805471,1733795440246,-3863.93,0.00010958,2]
[344805472,1733795440256,-1302.57,0.00010958,2]
[344805473,1733795440266,-500.0,0.00010958,2]
[344805474,1733795440276,-500.0,0.00010958,2]
[344805475,1733795440285,-500.0,0.00010958,2]
[344805476,1733795440294,-500.0,0.00010958,2]
[344805477,1733795440304,-500.0,0.00010958,2]
[344805478,1733795440314,-1226.45,0.00010958,2]
[344805479,1733795440323,-500.0,0.00010958,2]
[344805480,1733795440333,-1226.45,0.00010958,2]
[344805481,1733795440343,-1226.45,0.00010958,2]
[344805482,1733795440353,-500.0,0.00010958,2]
[344805483,1733795440362,-500.0,0.00010958,2]
[344805484,1733795440371,-500.0,0.00010958,2]
[344805485,1733795440380,-221.74156815,0.00010958,2]
[344805486,1733795440390,-500.0,0.00010958,2]
[344805487,1733795440400,-500.0,0.00010958,2]
[344805488,1733795440410,-500.0,0.00010958,2]
[344805489,1733795440420,-500.0,0.00010958,2]
[344805490,1733795440430,-500.0,0.00010958,2]
[344805491,1733795440440,-500.0,0.00010958,2]
[344805492,1733795440449,-500.0,0.00010958,2]
[344805493,1733795440459,-500.0,0.00010958,2]
[344805494,1733795440470,-500.0,0.00010958,2]
[344805495,1733795440479,-500.0,0.00010958,2]
[344805496,1733795440488,-500.0,0.00010958,2]
[344805497,1733795440498,-500.0,0.00010958,2]
[344805498,1733795440508,-500.22842924,0.00010958,2]
[344805499,1733795440518,-8029.67,0.00010958,2]
[344805500,1733795440527,-8029.67,0.00010958,2]
[344805501,1733795440537,-8029.67,0.00010958,2]
[344805502,1733795440546,-500.0,0.00010958,2]
[344805503,1733795440556,-500.0,0.00010958,2]
[344805504,1733795440566,-500.0,0.00010958,2]
[344805505,1733795440576,-500.0,0.00010958,2]
[344805506,1733795440586,-568.27,0.00010958,2]
[344805507,1733795440596,-1333.12,0.00010958,2]
[344805508,1733795440605,-1333.12,0.00010958,2]
[344805509,1733795440615,-1333.12,0.00010958,2]
[344805510,1733795440626,-500.0,0.00010958,2]
[344805511,1733795440636,-239.28315003,0.00010958,2]
[344805512,1733795440646,-585.9,0.00010958,2]
[344805513,1733795440657,-585.9,0.00010958,2]
[344805514,1733795440667,-585.9,0.00010958,2]
[344805515,1733795440677,-500.0,0.00010958,2]
[344805516,1733795440687,-500.0,0.00010958,2]
[344805517,1733795440697,-500.0,0.00010958,2]
[344805518,1733795440707,-2288.26,0.00010958,2]
[344805519,1733795440717,-1300.88,0.00010958,2]
[344805520,1733795440727,-1300.88,0.00010958,2]
[344805521,1733795440736,-1300.88,0.00010958,2]
[344805522,1733795440746,-500.0,0.00010958,2]
[344805523,1733795440755,-500.0,0.00010958,2]
[344805524,1733795440765,-500.0,0.00010958,2]
[344805525,1733795440775,-500.0,0.00010958,2]
[344805526,1733795440785,-2980.91,0.00010958,2]
[344805527,1733795440795,-2980.91,0.00010958,2]
[344805528,1733795440804,-2980.91,0.00010958,2]
[344805529,1733795440814,-513.23072693,0.00010958,2]
[344805530,1733795440824,-500.0,0.00010958,2]
[344805531,1733795440834,-505.03319965,0.00010958,2]
[344805532,1733795440843,-1448.57,0.00010958,2]
[344805533,1733795440853,-586.99535928,0.00010958,2]
[344805534,1733795440863,-1318.36,0.00010958,2]
[344805535,1733795440877,-500.0,0.00010958,2]
[344805536,1733795440890,-500.0,0.00010958,2]
[344805537,1733795440900,-500.0,0.00010958,2]
[344805538,1733795440910,-537.99715227,0.00010958,2]
[344805539,1733795440926,-1000.0,0.00010958,2]
[344805540,1733795440935,-1000.0,0.00010958,2]
[344805541,1733795440945,-1000.0,0.00010958,2]
[344805542,1733795440955,-313.31638443,0.00010958,2]
[344805543,1733795440966,-514.99,0.00010958,2]
[344805544,1733795440976,-514.99,0.00010958,2]
[344805545,1733795440986,-514.99,0.00010958,2]
[344805546,1733795440995,-500.0,0.00010958,2]
[344805547,1733795441005,-500.0,0.00010958,2]
[344805548,1733795441015,-480.62967594,0.00010958,2]
[344805549,1733795441025,-500.0,0.00010958,2]
[344805550,1733795441035,-500.0,0.00010958,2]
[344805551,1733795441052,-500.0,0.00010958,2]
[344805552,1733795441062,-150.9460306,0.00010958,2]
[344805553,1733795441071,-1934.05,0.00010958,2]
[344805554,1733795441081,-1934.05,0.00010958,2]
[344805555,1733795441091,-1934.05,0.00010958,2]
[344805556,1733795441105,-928.36,0.00010958,2]
[344805557,1733795441115,-500.0,0.00010958,2]
[344805558,1733795441125,-514.3331156,0.00010958,2]
[344805559,1733795441134,-500.0,0.00010958,2]
[344805560,1733795441146,-500.0,0.00010958,2]
[344805561,1733795441155,-500.0,0.00010958,2]
[344805562,1733795441165,-150.0,0.00010959,2]
[344805563,1733795441175,-388.14453515,0.00010973,2]
[344805564,1733795441185,-499.15688774,0.00010973,2]
[344805565,1733795441194,-500.61813983,0.00010973,2]
[344805566,1733795441205,-188.56473015,0.00010989,2]
[344805567,1733795441215,-473.8155798,0.00010989,2]
[344805568,1733795441225,-420.89478375,0.00010989,2]
[344805569,1733795441235,-500.0,0.00010989,2]
[344805570,1733795441245,-500.0,0.00010989,2]
[344805571,1733795441255,-500.0,0.00010989,2]
[344805572,1733795441267,-500.0,0.00010989,2]
[344805573,1733795441277,-500.0,0.00010989,2]
[344805574,1733795441288,-290.30991581,0.00010989,2]
[344805575,1733795441300,-500.0,0.00010989,2]
[344805576,1733795441516,-500.0,0.00010989,2]
[344805577,1733795441528,-500.0,0.00010989,2]
[344805578,1733795441539,-500.0,0.00010989,2]
[344805579,1733795441548,-500.0,0.00010989,2]
[344805580,1733795441558,-500.0,0.00010989,2]
[344805581,1733795441596,-500.0,0.00010989,2]
[344805582,1733795441606,-500.0,0.00010989,2]
[344805583,1733795441616,-500.0,0.00010989,2]
[344805584,1733795441627,-500.0,0.00010989,2]
[344805585,1733795441637,-500.0,0.00010989,2]
[344805586,1733795441647,-500.0,0.00010989,2]
[344805587,1733795441656,-500.0,0.00010989,2]
[344805588,1733795441665,-500.0,0.00010989,2]
[344805589,1733795441675,-500.0,0.00010989,2]
[344805590,1733795441684,-557.44,0.00010989,2]
[344805591,1733795441695,-500.0,0.00010989,2]
[344805592,1733795441705,-500.0,0.00010989,2]
[344805593,1733795441715,-500.0,0.00010989,2]
[344805594,1733795441725,-500.0,0.00010989,2]
[344805595,1733795441735,-1032.52,0.00010989,2]
[344805596,1733795441744,-626.28,0.00010989,2]
[344805597,1733795441754,-500.0,0.00010989,2]
[344805598,1733795441764,-500.0,0.00010989,2]
[344805599,1733795441774,-500.0,0.00010989,2]
[344805600,1733795441784,-488.07430029,0.00010989,2]
[344805601,1733795441794,-500.0,0.00010989,2]
[344805602,1733795441803,-500.0,0.00010989,2]
[344805603,1733795441814,-968.15,0.00010989,2]
[344805604,1733795441824,-1668.71,0.00010989,2]
[344805605,1733795441834,-3004.28,0.00010989,2]
[344805606,1733795441843,-500.0,0.00010989,2]
[344805607,1733795441854,-2515.33,0.00010989,2]
[344805608,1733795441863,-500.0,0.00010989,2]
[344805609,1733795441873,-500.0,0.00010989,2]
[344805610,1733795441883,-1227.05,0.00010989,2]
[344805611,1733795441894,-500.0,0.00010989,2]
[344805612,1733795441903,-500.0,0.00010989,2]
[344805613,1733795441914,-500.0,0.00010989,2]
[344805614,1733795441926,-543.5333321,0.00010989,2]
[344805615,1733795441936,-500.0,0.00010989,2]
[344805616,1733795441946,-927.39,0.00010989,2]
[344805617,1733795441956,-1248.29,0.00010989,2]
[344805618,1733795441967,-765.48,0.00010989,2]
[344805619,1733795441978,-3516.61,0.00010989,2]
[344805620,1733795441987,-500.0,0.00010989,2]
[344805621,1733795441998,-3863.93,0.00010989,2]
[344805622,1733795442009,-1302.57,0.00010989,2]
[344805623,1733795442019,-1226.45,0.00010989,2]
[344805624,1733795442030,-500.0,0.00010989,2]
[344805625,1733795442041,-500.0,0.00010989,2]
[344805626,1733795442051,-500.0,0.00010989,2]
[344805627,1733795442061,-500.0,0.00010989,2]
[344805628,1733795442071,-500.0,0.00010989,2]
[344805629,1733795442082,-500.0,0.00010989,2]
[344805630,1733795442109,-8029.67,0.00010989,2]
[344805631,1733795442120,-500.0,0.00010989,2]
[344805632,1733795442130,-500.0,0.00010989,2]
[344805633,1733795442141,-568.27,0.00010989,2]